lending/lending_fUSD_20250409
["ID","MTS","AMOUNT","RATE_DAILY","PERIOD"]
[357584979,1744197060905,-500.0,0.00055342,120]
[357584980,1744197060914,-500.0,0.00055342,120]
[357584981,1744197060924,-827.39,0.00055342,120]
[357584982,1744197060934,-500.0,0.00055342,120]
[357584983,1744197060944,-500.0,0.00055342,120]
[357584984,1744197060957,-500.0,0.00055342,120]
[357584985,1744197060966,-500.0,0.00055342,120]
[357584986,1744197060976,-500.0,0.00055342,120]
[357584987,1744197060985,-690.06,0.00055342,30]
[357584988,1744197060996,-150.0,0.00055345,14]
[357584989,1744197061006,-150.0,0.00055347,14]
[357584990,1744197061016,-150.0,0.00055348,14]
[357584991,1744197061024,-150.0,0.00055351,14]
[357584992,1744197061034,-150.0,0.00055363,14]
[357584993,1744197061045,-150.0,0.00055363,14]
[357584994,1744197061054,-150.0,0.00055365,14]
[357584995,1744197061064,-150.0,0.00055368,14]
[357584996,1744197061073,-150.0,0.00055372,14]
[357584997,1744197061082,-386.59411305,0.00055373,14]
[357584998,1744197061091,-150.0,0.00055373,14]
[357584999,1744197061103,-150.0,0.00055374,14]
[357585000,1744197061114,-150.0,0.00055375,14]
[357585001,1744197061124,-150.0,0.00055381,14]
[357585002,1744197061133,-150.0,0.00055381,14]
[357585003,1744197061143,-150.0,0.00055383,14]
[357585004,1744197061154,-150.0,0.00055391,14]
[357585005,1744197061166,-150.0,0.00055396,14]
[357585006,1744197061178,-150.0,0.00055396,14]
[357585007,1744197061189,-1026.99,0.000554,60]
[357585008,1744197061199,-150.0,0.00055401,14]
[357585009,1744197061210,-150.0,0.00055413,14]
[357585010,1744197061430,-150.0,0.0005542,14]
[357585011,1744197061442,-150.0,0.00055425,14]
[357585012,1744197061454,-150.0,0.00055429,14]
[357585013,1744197061465,-150.0,0.00055434,14]
[357585014,1744197061478,-150.0,0.00055436,14]
[357585015,1744197061489,-150.0,0.00055443,14]
[357585016,1744197061501,-150.0,0.00055444,14]
[357585017,1744197061514,-150.0,0.00055453,14]
[357585018,1744197061530,-150.0,0.00055475,14]
[357585019,1744197061542,-150.0,0.00055476,14]
[357585020,1744197061553,-150.0,0.0005548,14]
[357585021,1744197061564,-150.0,0.00055481,14]
[357585022,1744197061575,-150.0,0.00055484,14]
[357585023,1744197061587,-150.0,0.00055486,14]
[357585024,1744197061599,-150.0,0.00055486,14]
[357585025,1744197061618,-150.0,0.00055487,14]
[357585026,1744197061634,-150.0,0.00055491,14]
[357585027,1744197061645,-150.0,0.00055497,14]
[357585028,1744197061658,-150.0,0.00055498,14]
[357585029,1744197061669,-154.29590992,0.00055499,120]
[357585030,1744197061680,-299.02516357,0.000555,120]
[357585031,1744197061693,-2986.013245,0.000555,120]
[357585032,1744197061710,-150.0,0.00055507,14]
[357585033,1744197061720,-150.0,0.00055509,14]
[357585034,1744197061730,-150.0,0.00055515,14]
[357585035,1744197061740,-150.0,0.00055515,14]
[357585036,1744197061749,-150.0,0.00055521,14]
[357585037,1744197061760,-150.0,0.00055525,14]
[357585038,1744197061772,-1115.0,0.00055527,30]
[357585039,1744197061783,-493.95647242,0.00055527,30]
[357585040,1744197061794,-150.0,0.0005553,14]
[357585041,1744197061805,-150.0,0.00055534,14]
[357585042,1744197061816,-150.0,0.00055535,14]
[357585043,1744197061827,-150.0,0.00055536,14]
[357585044,1744197061839,-150.0,0.00055538,14]
[357585045,1744197061851,-150.0,0.00055542,14]
[357585046,1744197061868,-150.0,0.00055546,14]
[357585047,1744197061879,-150.0,0.00055548,14]
[357585048,1744197061891,-150.0,0.00055548,14]
[357585049,1744197061903,-150.0,0.00055552,14]
[357585050,1744197061917,-150.0,0.00055559,14]
[357585051,1744197061927,-150.0,0.00055559,14]
[357585052,1744197061939,-150.0,0.0005556,14]
[357585053,1744197061951,-150.0,0.00055562,14]
[357585054,1744197061964,-150.0,0.00055565,14]
[357585055,1744197061974,-150.0,0.00055569,14]
[357585056,1744197061986,-150.0,0.00055589,14]
[357585057,1744197061997,-212.68540605,0.0005559,7]
[357585058,1744197062007,-150.0,0.00055594,14]
[357585059,1744197062017,-150.0,0.00055596,14]
[357585060,1744197062028,-150.0,0.00055599,10]
[357585061,1744197062039,-150.0,0.00055599,10]
[357585062,1744197062050,-150.0,0.00055599,10]
[357585063,1744197062064,-150.0,0.00055599,10]
[357585064,1744197062074,-150.0,0.00055599,10]
[357585065,1744197062084,-150.0,0.00055599,10]
[357585066,1744197062094,-150.0,0.00055599,10]
[357585067,1744197062108,-150.0,0.00055599,10]
[357585068,1744197062120,-150.0,0.00055599,10]
[357585069,1744197062131,-150.0,0.00055599,10]
[357585070,1744197062142,-150.0,0.00055599,10]
[357585071,1744197062152,-300.0,0.00055599,30]
[357585072,1744197062163,-150.0,0.00055599,120]
[357585073,1744197062173,-150.0,0.00055599,120]
[357585074,1744197062183,-150.0,0.00055599,120]
[357585075,1744197062193,-150.0,0.00055599,120]
[357585076,1744197062203,-150.0,0.00055599,120]
[357585077,1744197062213,-150.0,0.00055599,120]
[357585078,1744197062222,-150.0,0.00055599,120]
[357585079,1744197062232,-150.0,0.00055599,120]
[357585080,1744197062242,-150.0,0.00055599,120]
[357585081,1744197062251,-150.0,0.00055599,120]
[357585082,1744197062261,-150.0,0.00055599,120]
[357585083,1744197062271,-150.0,0.00055599,120]
[357585084,1744197062280,-150.0,0.00055599,120]
[357585085,1744197062290,-198.74,0.000556,120]
[357585086,1744197062300,-223724.23545004,0.000556,120]
[357585087,1744197062316,-1094.0292202,0.000556,120]
[357585088,1744197062329,-1880.29809223,0.000556,120]
[357585089,1744197062341,-1151.6033,0.000556,120]
[357585090,1744197062356,-19123.62460402,0.000556,120]
[357585091,1744197062373,-3300.0,0.000556,120]
[357585092,1744197062385,-1236.835,0.000556,120]
[357585093,1744197062397,-21427.90948793,0.000556,120]
[357585094,1744197062409,-2295.0,0.000556,120]
[357585095,1744197062462,-500.0,0.00054794,120]
[357585096,1744197062473,-5791290.49055528,0.000556,120]
[357585097,1744197062485,-106500.00000994,0.000556,120]
[357585098,1744197062496,-2245.03215951,0.000556,120]
[357585099,1744197062508,-2565.13096911,0.000556,120]
[357585100,1744197062550,-460.0,0.000556,120]
[357585101,1744197062566,-7635.5406,0.000556,120]
[357585102,1744197062577,-10829.32730903,0.000556,120]
[357585103,1744197063569,-151.0,0.00053087,30]
[357585104,1744197063578,-502.26132373,0.00054794,120]
[357585105,1744197063588,-500.0,0.00054794,120]
[357585106,1744197063597,-500.0,0.00054794,120]
[357585107,1744197063610,-500.0,0.00054794,120]
[357585108,1744197063619,-500.0,0.00054794,120]
[357585109,1744197063629,-500.0,0.00054794,120]
[357585110,1744197063639,-505.93389787,0.00054794,120]
[357585111,1744197063649,-500.0,0.00054794,120]
[357585112,1744197063659,-500.0,0.00054794,120]
[357585113,1744197063669,-500.0,0.00054794,120]
[357585114,1744197063678,-500.0,0.00054794,120]
[357585115,1744197063688,-500.0,0.00054794,120]
[357585116,1744197063698,-500.0,0.00054794,120]
[357585117,1744197063708,-500.0,0.00054794,120]
[357585118,1744197063718,-500.0,0.00054794,120]
[357585119,1744197063728,-500.0,0.00054794,120]
[357585120,1744197063738,-1056.46381335,0.00054794,120]
[357585121,1744197063973,-397.36618665,0.00054794,120]
[357585122,1744197063983,-500.0,0.00054794,120]
[357585123,1744197063993,-3196.357576,0.00054794,120]
[357585124,1744197064003,-500.0,0.00054794,120]
[357585125,1744197064014,-200.0,0.000548,20]
[357585126,1744197064024,-500.0,0.000549,20]
[357585127,1744197064035,-500.0,0.00055068,120]
[357585128,1744197064045,-354.58,0.00055068,120]
[357585129,1744197064055,-500.0,0.00055068,120]
[357585130,1744197064066,-500.0,0.00055068,120]
[357585131,1744197064077,-500.0,0.00055068,120]
[357585132,1744197064087,-500.0,0.00055068,120]
[357585133,1744197064097,-500.0,0.00055068,120]
[357585134,1744197064110,-500.0,0.00055068,120]
[357585135,1744197064120,-500.0,0.00055068,120]
[357585136,1744197064130,-1453.83,0.00055068,120]
[357585137,1744197064141,-500.0,0.00055342,120]
[357585138,1744197064152,-602.84536427,0.00055342,120]
[357585139,1744197064163,-500.0,0.00055342,120]
[357585140,1744197064175,-479.94760886,0.00055342,120]
[357585141,1744197064185,-500.0,0.00055342,120]
[357585142,1744197064195,-500.0,0.00055342,120]
[357585143,1744197064206,-500.0,0.00055342,120]
[357585144,1744197064216,-189.02834944,0.00055418,60]
[357585145,1744197064227,-1000.0,0.00055433,60]
[357585146,1744197064238,-1000.0,0.00055434,60]
[357585147,1744197064249,-1000.0,0.00055462,60]
[357585148,1744197064260,-1000.0,0.0005548,60]
[357585149,1744197064271,-1000.0,0.00055483,60]
[357585150,1744197064281,-1000.0,0.00055483,60]
[357585151,1744197064291,-150.0,0.00055485,14]
[357585152,1744197064302,-150.0,0.00055488,14]
[357585153,1744197064312,-1000.0,0.00055489,60]
[357585154,1744197064323,-150.0,0.00055527,14]
[357585155,1744197064335,-1000.0,0.00055531,60]
[357585156,1744197064346,-1000.0,0.00055543,60]
[357585157,1744197064361,-248143.12129205,0.000556,120]
[357585158,1744197064375,-238563.37041746,0.000556,120]
[357585159,1744197064395,-3196.357576,0.00055068,120]
[357585160,1744197064406,-700434.37199475,0.000556,120]
[357585161,1744197064417,-10581.81341587,0.000556,30]
[357585162,1744197064428,-150.0,0.00055601,14]
[357585163,1744197064440,-150.44778311,0.00055609,14]
[357585164,1744197064451,-150.0,0.00055612,14]
[357585165,1744197064462,-150.0,0.00055614,120]
[357585166,1744197064474,-101016.02941737,0.00055615,120]
[357585167,1744197064484,-150.0,0.00055615,10]
[357585168,1744197064494,-150.0,0.00055615,10]
[357585169,1744197064505,-150.0,0.00055615,10]
[357585170,1744197064515,-150.0,0.00055615,10]
[357585171,1744197064526,-150.0,0.00055615,10]
[357585172,1744197064536,-150.0,0.00055615,10]
[357585173,1744197064546,-150.0,0.00055615,10]
[357585174,1744197064556,-150.0,0.00055615,10]
[357585175,1744197064566,-150.0,0.00055615,10]
[357585176,1744197064576,-150.0,0.00055615,10]
[357585177,1744197064587,-150.0,0.00055615,10]
[357585178,1744197064598,-300.0,0.00055615,30]
[357585179,1744197064610,-10581.81341587,0.00055616,30]
[357585180,1744197064621,-500.0,0.00055616,120]
[357585181,1744197064631,-500.0,0.00055616,120]
[357585182,1744197064641,-500.0,0.00055616,120]
[357585183,1744197064651,-500.0,0.00055616,120]
[357585184,1744197064662,-793.16,0.00055616,10]
[357585185,1744197064672,-500.0,0.00055616,120]
[357585186,1744197064682,-500.0,0.00055616,120]
[357585187,1744197064693,-500.0,0.00055616,120]
[357585188,1744197064703,-632.74,0.00055616,120]
[357585189,1744197064714,-500.0,0.00055616,120]
[357585190,1744197064724,-500.0,0.00055616,30]
[357585191,1744197064735,-500.0,0.00055616,120]
[357585192,1744197064745,-500.0,0.00055616,120]
[357585193,1744197064756,-500.0,0.00055616,120]
[357585194,1744197064766,-500.0,0.00055616,120]
[357585195,1744197064778,-593.9120473,0.00055616,120]
[357585196,1744197064788,-500.0,0.00055616,120]
[357585197,1744197064800,-501.43,0.00055616,120]
[357585198,1744197064811,-500.0,0.00055616,120]
[357585199,1744197064821,-500.0,0.00055616,120]
[357585200,1744197064831,-500.0,0.00055616,120]
[357585201,1744197064841,-500.0,0.00055616,120]
[357585202,1744197064852,-546.96,0.00055616,120]
[357585203,1744197064867,-931.81,0.00055616,120]
[357585204,1744197064877,-500.0,0.00055616,120]
[357585205,1744197064888,-500.0,0.00055616,120]
[357585206,1744197064898,-500.0,0.00055616,120]
[357585207,1744197064909,-500.0,0.00055616,120]
[357585208,1744197064919,-347.53850452,0.00055616,120]
[357585209,1744197064929,-641.85235283,0.00055616,120]
[357585210,1744197064939,-500.0,0.00055616,120]
[357585211,1744197064952,-500.0,0.00055616,120]
[357585212,1744197064961,-500.0,0.00055616,120]
[357585213,1744197064971,-500.0,0.00055616,120]
[357585214,1744197064980,-500.0,0.00055616,90]
[357585215,1744197064989,-500.0,0.00055616,120]
[357585216,1744197065000,-500.0,0.00055616,120]
[357585217,1744197065010,-399.59280364,0.00055616,120]
[357585218,1744197065020,-500.0,0.00055616,120]
[357585219,1744197065030,-500.0,0.00055616,120]
[357585220,1744197065040,-1549.59,0.00055616,120]
[357585221,1744197065050,-500.0,0.00055616,120]
[357585222,1744197065060,-646.59,0.00055616,120]
[357585223,1744197065071,-694.44,0.00055616,120]
[357585224,1744197065082,-500.0,0.00055616,120]
[357585225,1744197065092,-500.0,0.00055616,120]
[357585226,1744197065107,-501.13,0.00055616,120]
[357585227,1744197065117,-500.0,0.00055616,120]
[357585228,1744197065127,-500.0,0.00055616,120]
[357585229,1744197065137,-300.0,0.00055616,120]
[357585230,1744197065147,-500.0,0.00055616,120]
[357585231,1744197065157,-500.0,0.00055616,120]
[357585232,1744197065167,-529.87,0.00055616,120]
[357585233,1744197065179,-500.0,0.00055616,120]
[357585234,1744197065198,-500.0,0.00055616,120]
[357585235,1744197065209,-500.0,0.00055616,120]
[357585236,1744197065219,-598.67,0.00055616,120]
[357585237,1744197065229,-500.0,0.00055616,2]
[357585238,1744197065239,-500.0,0.00055616,120]
[357585239,1744197065252,-500.0,0.00055616,120]
[357585240,1744197065265,-500.0,0.00055616,120]
[357585241,1744197065276,-883.13,0.00055616,120]
[357585242,1744197065286,-500.0,0.00055616,2]
[357585243,1744197065296,-386.39990448,0.00055616,120]
[357585244,1744197065308,-500.0,0.00055616,120]
[357585245,1744197065318,-524.11571841,0.00055616,120]
[357585246,1744197065328,-500.0,0.00055616,120]
[357585247,1744197065339,-500.0,0.00055616,120]
[357585248,1744197065349,-500.0,0.00055616,120]
[357585249,1744197065363,-1256.67,0.00055616,120]
[357585250,1744197065373,-500.0,0.00055616,120]
[357585251,1744197065384,-500.0,0.00055616,120]
[357585252,1744197065394,-1102.4,0.00055616,120]
[357585253,1744197065404,-500.0,0.00055616,120]
[357585254,1744197065415,-590.97,0.00055616,120]
[357585255,1744197065425,-500.0,0.00055616,120]
[357585256,1744197065435,-500.0,0.00055616,120]
[357585257,1744197065445,-829.04,0.00055616,120]
[357585258,1744197065456,-500.0,0.00055616,120]
[357585259,1744197065466,-625.63,0.00055616,120]
[357585260,1744197065476,-500.0,0.00055616,120]
[357585261,1744197065487,-500.0,0.00055616,120]
[357585262,1744197065497,-500.0,0.00055616,120]
[357585263,1744197065507,-500.0,0.00055616,120]
[357585264,1744197065517,-500.0,0.00055616,120]
[357585265,1744197065527,-500.0,0.00055616,120]
[357585266,1744197065537,-500.0,0.00055616,120]
[357585267,1744197065548,-500.0,0.00055616,120]
[357585268,1744197065559,-500.0,0.00055616,120]
[357585269,1744197065569,-2291.45,0.00055616,120]
[357585270,1744197065579,-500.0,0.00055616,120]
[357585271,1744197065589,-500.0,0.00055616,120]
[357585272,1744197065599,-500.0,0.00055616,120]
[357585273,1744197065613,-602.80253478,0.00055616,120]
[357585274,1744197065623,-500.0,0.00055616,120]
[357585275,1744197065633,-500.0,0.00055616,120]
[357585276,1744197065643,-500.0,0.00055616,120]
[357585277,1744197065653,-500.0,0.00055616,120]
[357585278,1744197065663,-500.0,0.00055616,120]
[357585279,1744197065673,-545.92,0.00055616,120]
[357585280,1744197065683,-500.0,0.00055616,120]
[357585281,1744197065692,-567.15,0.00055616,120]
[357585282,1744197065702,-500.0,0.00055616,120]
[357585283,1744197065712,-500.0,0.00055616,120]
[357585284,1744197065722,-500.0,0.00055616,120]
[357585285,1744197065731,-500.0,0.00055616,120]
[357585286,1744197065741,-500.0,0.00055616,30]
[357585287,1744197065751,-500.0,0.00055616,120]
[357585288,1744197065761,-582.48,0.00055616,120]
[357585289,1744197065771,-500.0,0.00055616,120]
[357585290,1744197065782,-565.02,0.00055616,120]
[357585291,1744197065791,-500.0,0.00055616,120]
[357585292,1744197065801,-500.0,0.00055616,120]
[357585293,1744197065812,-500.0,0.00055616,120]
[357585294,1744197065822,-500.0,0.00055616,120]
[357585295,1744197065832,-500.0,0.00055616,120]
[357585296,1744197065843,-500.0,0.00055616,120]
[357585297,1744197065857,-500.0,0.00055616,120]
[357585298,1744197065866,-544.35,0.00055616,120]
[357585299,1744197065876,-274.96193568,0.00055616,120]
[357585300,1744197065886,-500.0,0.00055616,120]
[357585301,1744197065896,-500.0,0.00055616,120]
[357585302,1744197065908,-500.0,0.00055616,120]
[357585303,1744197065919,-500.0,0.00055616,120]
[357585304,1744197065930,-500.0,0.00055616,120]
[357585305,1744197065940,-555.00668294,0.00055616,120]
[357585306,1744197065950,-500.0,0.00055616,120]
[357585307,1744197065964,-500.0,0.00055616,120]
[357585308,1744197065975,-500.0,0.00055616,120]
[357585309,1744197065985,-500.0,0.00055616,120]
[357585310,1744197065995,-500.0,0.00055616,120]
[357585311,1744197066006,-500.0,0.00055616,120]
[357585312,1744197066016,-500.0,0.00055616,120]
[357585313,1744197066027,-500.0,0.00055616,120]
[357585314,1744197066039,-500.0,0.00055616,120]
[357585315,1744197066050,-151.0,0.00055616,30]
[357585316,1744197066061,-151.0,0.00055616,30]
[357585317,1744197066072,-561.39,0.00055616,120]
[357585318,1744197066083,-151.0,0.00055616,30]
[357585319,1744197066093,-151.0,0.00055616,30]
[357585320,1744197066106,-151.0,0.00055616,30]
[357585321,1744197066116,-511.56,0.00055616,120]
[357585322,1744197066126,-151.0,0.00055616,30]
[357585323,1744197066136,-500.0,0.00055616,120]
[357585324,1744197066146,-151.0,0.00055616,30]
[357585325,1744197066156,-500.0,0.00055616,120]
[357585326,1744197066167,-500.0,0.00055616,120]
[357585327,1744197066429,-500.0,0.00055616,120]
[357585328,1744197066440,-500.0,0.00055616,120]
[357585329,1744197066451,-500.0,0.00055616,120]
[357585330,1744197066461,-690.75,0.00055616,120]
[357585331,1744197066471,-500.0,0.00055616,120]
[357585332,1744197066481,-500.0,0.00055616,120]
[357585333,1744197066491,-500.0,0.00055616,120]
[357585334,1744197066502,-500.0,0.00055616,120]
[357585335,1744197066512,-500.0,0.00055616,120]
[357585336,1744197066522,-500.0,0.00055616,120]
[357585337,1744197066532,-500.0,0.00055616,120]
[357585338,1744197066542,-389.81642691,0.00055616,120]
[357585339,1744197066552,-500.0,0.00055616,120]
[357585340,1744197066563,-500.0,0.00055616,120]
[357585341,1744197066573,-500.0,0.00055616,120]
[357585342,1744197066583,-663.03,0.00055616,120]
[357585343,1744197066593,-500.0,0.00055616,120]
[357585344,1744197066607,-157.61088713,0.00055616,120]
[357585345,1744197066617,-500.0,0.00055616,120]
[357585346,1744197066626,-500.0,0.00055616,120]
[357585347,1744197066637,-500.0,0.00055616,120]
[357585348,1744197066647,-784.53,0.00055616,120]
[357585349,1744197066656,-500.0,0.00055616,120]
[357585350,1744197066666,-500.0,0.00055616,120]
[357585351,1744197066676,-500.0,0.00055616,120]
[357585352,1744197066685,-2590.7,0.00055616,120]
[357585353,1744197066695,-500.0,0.00055616,120]
[357585354,1744197066705,-500.0,0.00055616,120]
[357585355,1744197066715,-500.0,0.00055616,120]
[357585356,1744197066726,-500.0,0.00055616,120]
[357585357,1744197066736,-500.0,0.00055616,120]
[357585358,1744197066747,-599.6,0.00055616,120]
[357585359,1744197066758,-500.0,0.00055616,120]
[357585360,1744197066768,-454.01018618,0.00055616,120]
[357585361,1744197066778,-500.0,0.00055616,120]
[357585362,1744197066788,-500.0,0.00055616,120]
[357585363,1744197066797,-500.0,0.00055616,120]
[357585364,1744197066807,-500.0,0.00055616,120]
[357585365,1744197066816,-500.0,0.00055616,120]
[357585366,1744197066826,-500.0,0.00055616,120]
[357585367,1744197066836,-500.0,0.00055616,120]
[357585368,1744197066845,-500.0,0.00055616,120]
[357585369,1744197066857,-1042.8,0.00055616,120]
[357585370,1744197066867,-500.0,0.00055616,120]
[357585371,1744197066877,-500.0,0.00055616,120]
[357585372,1744197066887,-500.0,0.00055616,120]
[357585373,1744197066896,-500.0,0.00055616,120]
[357585374,1744197066906,-500.0,0.00055616,120]
[357585375,1744197066918,-2000.0,0.00055616,120]
[357585376,1744197066928,-500.0,0.00055616,120]
[357585377,1744197066937,-500.0,0.00055616,120]
[357585378,1744197066946,-500.0,0.00055616,120]
[357585379,1744197066961,-718.03,0.00055616,120]
[357585380,1744197066971,-500.0,0.00055616,120]
[357585381,1744197066980,-500.0,0.00055616,120]
[357585382,1744197066991,-559.0,0.00055616,120]
[357585383,1744197067000,-500.0,0.00055616,120]
[357585384,1744197067012,-500.0,0.00055616,120]
[357585385,1744197067022,-500.0,0.00055616,120]
[357585386,1744197067031,-617.42,0.00055616,120]
[357585387,1744197067041,-500.0,0.00055616,120]
[357585388,1744197067051,-500.0,0.00055616,120]
[357585389,1744197067061,-500.0,0.00055616,120]
[357585390,1744197067071,-500.0,0.00055616,120]
[357585391,1744197067080,-500.0,0.00055616,3]
[357585392,1744197067089,-500.0,0.00055616,120]
[357585393,1744197067099,-500.0,0.00055616,120]
[357585394,1744197067112,-500.0,0.00055616,120]
[357585395,1744197067121,-201.26132095,0.00055616,120]
[357585396,1744197067131,-500.0,0.00055616,120]
[357585397,1744197067141,-585.99,0.00055616,120]
[357585398,1744197067151,-693.65,0.00055616,120]
[357585399,1744197067161,-500.0,0.00055616,120]
[357585400,1744197067172,-500.0,0.00055616,120]
[357585401,1744197067183,-500.0,0.00055616,120]
[357585402,1744197067193,-500.0,0.00055616,120]
[357585403,1744197067203,-521.3,0.00055616,120]
[357585404,1744197067213,-500.0,0.00055616,120]
[357585405,1744197067223,-500.0,0.00055616,120]
[357585406,1744197067233,-500.0,0.00055616,120]
[357585407,1744197067243,-500.0,0.00055616,120]
[357585408,1744197067253,-524.98,0.00055616,120]
[357585409,1744197067264,-500.0,0.00055616,120]
[357585410,1744197067273,-1000.0,0.00055616,120]
[357585411,1744197067283,-500.0,0.00055616,120]
[357585412,1744197067293,-500.0,0.00055616,120]
[357585413,1744197067303,-500.0,0.00055616,120]
[357585414,1744197067313,-500.0,0.00055616,120]
[357585415,1744197067323,-500.0,0.00055616,120]
[357585416,1744197067333,-500.0,0.00055616,120]
[357585417,1744197067342,-500.0,0.00055616,120]
[357585418,1744197067352,-500.0,0.00055616,120]
[357585419,1744197067367,-517.55,0.00055616,120]
[357585420,1744197067378,-500.0,0.00055616,120]
[357585421,1744197067388,-500.0,0.00055616,120]
[357585422,1744197067398,-500.0,0.00055616,120]
[357585423,1744197067408,-236.90773349,0.00055616,120]
[357585424,1744197067418,-500.0,0.00055616,120]
[357585425,1744197067428,-522.75,0.00055616,120]
[357585426,1744197067438,-500.0,0.00055616,120]
[357585427,1744197067448,-504.03046326,0.00055616,120]
[357585428,1744197067458,-500.0,0.00055616,120]
[357585429,1744197067468,-500.0,0.00055616,120]
[357585430,1744197067479,-418.82822726,0.00055616,120]
[357585431,1744197067489,-771.75,0.00055616,120]
[357585432,1744197067499,-580.75,0.00055616,120]
[357585433,1744197067509,-500.0,0.00055616,120]
[357585434,1744197067518,-500.0,0.00055616,120]
[357585435,1744197067528,-500.0,0.00055616,120]
[357585436,1744197067538,-500.0,0.00055616,120]
[357585437,1744197067547,-500.0,0.00055616,120]
[357585438,1744197067557,-500.0,0.00055616,120]
[357585439,1744197067567,-500.0,0.00055616,120]
[357585440,1744197067577,-500.0,0.00055616,120]
[357585441,1744197067586,-552.18,0.00055616,120]
[357585442,1744197067597,-500.0,0.00055616,120]
[357585443,1744197067609,-580.85,0.00055616,120]
[357585444,1744197067619,-500.0,0.00055616,120]
[357585445,1744197067628,-500.0,0.00055616,120]
[357585446,1744197067637,-500.0,0.00055616,120]
[357585447,1744197067647,-500.0,0.00055616,120]
[357585448,1744197067656,-500.0,0.00055616,120]
[357585449,1744197067666,-500.0,0.00055616,120]
[357585450,1744197067676,-1208.17,0.00055616,120]
[357585451,1744197067685,-541.0,0.00055616,120]
[357585452,1744197067695,-500.0,0.00055616,120]
[357585453,1744197067704,-500.0,0.00055616,120]
[357585454,1744197067713,-500.0,0.00055616,120]
[357585455,1744197067723,-48331.95,0.00055616,7]
[357585456,1744197067733,-500.0,0.00055616,120]
[357585457,1744197067742,-812.57,0.00055616,120]
[357585458,1744197067751,-500.0,0.00055616,120]
[357585459,1744197067761,-1170.05,0.00055616,120]
[357585460,1744197067771,-781.39,0.00055616,120]
[357585461,1744197067780,-500.0,0.00055616,120]
[357585462,1744197067790,-873.86,0.00055616,120]
[357585463,1744197067800,-500.0,0.00055616,38]
[357585464,1744197067809,-500.0,0.00055616,120]
[357585465,1744197067819,-755.28,0.00055616,120]
[357585466,1744197067830,-500.0,0.00055616,120]
[357585467,1744197067840,-500.0,0.00055616,120]
[357585468,1744197067850,-500.0,0.00055616,120]
[357585469,1744197067864,-500.0,0.00055616,120]
[357585470,1744197067875,-1288.5,0.00055616,120]
[357585471,1744197067885,-614.16,0.00055616,120]
[357585472,1744197067895,-1292.94,0.00055616,100]
[357585473,1744197067906,-500.0,0.00055616,120]
[357585474,1744197067920,-500.0,0.00055616,120]
[357585475,1744197067930,-1314.53,0.00055616,120]
[357585476,1744197067939,-500.0,0.00055616,120]
[357585477,1744197067950,-699.99,0.00055616,120]
[357585478,1744197067961,-500.0,0.00055616,120]